bitfinex-derivatives/quotes_BNBF0:USTF0_20250509
["timestamp","ask_amount","ask_price","bid_price","bid_amount"]
[1746784299965,0.25644848,631.64,628.73,0.29160493]
[1746784300267,0.25644848,631.64,628.74,0.29160493]
[1746784300665,0.25644848,631.64,628.75,0.29160493]
[1746784300966,0.25644848,631.64,628.76,0.29160493]
[1746784301361,0.25644848,631.64,628.77,0.29160493]
[1746784301667,0.25644848,632.18,628.78,0.29160493]
[1746784302068,0.25644848,632.17,628.79,0.29160493]
[1746784302369,0.53246152,632.17,628.79,0.29160493]
[1746784302569,0.25644848,632.16,628.8,0.29160493]
[1746784302771,0.25644848,632.15,628.81,0.29160493]
[1746784303070,0.25644848,632.14,628.82,0.29160493]
[1746784303365,0.25644848,632.13,628.83,0.29160493]
[1746784303772,0.25644848,632.12,628.84,0.29160493]
[1746784303972,0.25644848,632.12,628.86,0.31803581]
[1746784304272,0.31647572,631.96,628.86,0.31803581]
[1746784304472,0.31647572,631.96,628.87,0.29160493]
[1746784304768,0.25644848,631.95,628.87,0.29160493]
[1746784305172,0.25644848,631.94,628.87,0.29160493]
[1746784305472,0.25644848,631.93,628.87,0.29160493]
[1746784305772,0.25644848,631.92,628.87,0.29160493]
[1746784306173,0.25644848,631.91,628.87,0.29160493]
[1746784306371,0.25644848,631.9,628.87,0.29160493]
[1746784306670,0.25644848,631.89,628.87,0.29160493]
[1746784307173,0.25644848,631.88,628.88,0.29160493]
[1746784307369,0.25644848,631.88,628.87,0.29160493]
[1746784307370,0.25644848,631.87,628.87,0.29160493]
[1746784307772,0.25644848,631.86,628.88,0.29160493]
[1746784307967,0.25644848,631.85,628.87,0.29160493]
[1746784308368,0.25644848,631.84,628.88,0.29160493]
[1746784308673,0.25644848,631.83,628.89,0.29160493]
[1746784308977,0.25644848,631.82,628.9,0.29160493]
[1746784309276,0.25644848,631.81,628.91,0.29160493]
[1746784309572,0.25644848,631.8,628.87,0.29160493]
[1746784309777,2.01121044,631.76,628.87,0.29160493]
[1746784310072,0.25644848,631.75,628.87,0.29160493]
[1746784310476,0.25644848,631.74,628.87,0.29160493]
[1746784310773,0.25644848,631.73,628.87,0.29160493]
[1746784311077,0.25644848,631.72,628.87,0.29160493]
[1746784311272,0.53263567,631.72,628.87,0.29160493]
[1746784311477,0.25644848,631.71,628.87,0.29160493]
[1746784311677,0.25644848,631.7,628.87,0.29160493]
[1746784311978,0.25644848,631.69,628.86,0.31803581]
[1746784312279,0.25644848,631.68,628.86,0.31803581]
[1746784312571,0.25644848,631.67,628.87,0.29183468]
[1746784312977,0.25644848,631.66,628.87,0.29183468]
[1746784313177,0.25644848,631.65,628.87,0.29183468]
[1746784313578,0.25644848,631.64,628.87,0.29183468]
[1746784313877,0.25644848,631.63,628.87,0.29183468]
[1746784314179,0.25644848,631.62,628.87,0.29183468]
[1746784314478,0.25644848,631.61,628.87,0.29183468]
[1746784314778,0.25644848,631.6,628.87,0.29183468]
[1746784315179,0.25644848,631.59,628.87,0.29183468]
[1746784315580,0.25644848,631.58,628.87,0.29183468]
[1746784315781,0.25644848,631.57,628.87,0.29183468]
[1746784316077,0.25644848,631.56,628.87,0.29183468]
[1746784316575,0.25644848,631.55,628.87,0.29183468]
[1746784316881,0.25644848,631.54,628.87,0.29183468]
[1746784317180,0.25644848,631.53,628.87,0.29183468]
[1746784317377,0.53260498,631.53,628.87,0.29183468]
[1746784317581,0.25644848,631.52,628.87,0.29183468]
[1746784317981,0.25644848,631.51,628.87,0.29183468]
[1746784318282,0.25644848,631.5,628.87,0.29183468]
[1746784318584,0.2761565,631.53,628.86,0.59419231]
[1746784318881,0.25667478,631.52,628.87,0.29179569]
[1746784319181,0.25667478,631.51,628.87,0.29179569]
[1746784319582,0.25667478,631.5,628.88,0.29179569]
[1746784319882,0.25667478,631.49,628.89,0.29179569]
[1746784320181,0.25667478,631.49,628.89,0.60981632]
[1746784320381,0.25667478,631.48,628.9,0.60981127]
[1746784320575,0.25667478,631.47,628.91,0.29179569]
[1746784320979,0.25667478,631.46,628.91,0.29179569]
[1746784321382,0.25667478,631.45,628.92,0.29179569]
[1746784321681,0.25667478,631.44,628.93,0.29179569]
[1746784322183,0.25667478,631.43,628.94,0.29179569]
[1746784322375,0.53278746,631.43,628.94,0.29179569]
[1746784322580,0.53278746,631.43,628.95,0.3179903]
[1746784322884,0.31680157,631.31,628.96,0.29179569]
[1746784323185,0.25667478,631.3,628.97,0.29179569]
[1746784323379,0.31680157,631.31,628.95,0.3179903]
[1746784323784,0.31680157,631.31,628.96,0.29167259]
[1746784323785,0.25678192,631.3,628.96,0.29167259]
[1746784323979,0.25678192,631.29,628.97,0.29167259]
[1746784324484,0.25678192,631.28,628.98,0.29167259]
[1746784324880,0.25678192,631.28,628.99,0.29167259]
[1746784325079,0.31680157,631.31,628.99,0.29167259]
[1746784325080,0.25678192,631.27,628.99,0.29167259]
[1746784325283,0.25678192,631.26,629.0,0.29167259]
[1746784325582,0.25678192,631.25,629.01,0.29167259]
[1746784325879,0.25678192,631.25,628.95,0.3179903]
[1746784325880,0.25678192,631.26,629.02,0.29167259]
[1746784326286,0.25678192,631.25,629.03,0.29167259]
[1746784326482,0.27615212,631.27,628.95,0.3179903]
[1746784326682,0.25684159,631.26,628.96,0.29168169]
[1746784327088,0.25684159,631.26,628.97,0.29168169]
[1746784327283,0.25684159,631.26,628.98,0.29168169]
[1746784327988,0.25684159,631.26,628.99,0.29168169]
[1746784328289,0.25684159,631.26,628.96,0.29168169]
[1746784328683,0.25684159,631.3,628.96,0.29168169]
[1746784329288,0.2761587,631.29,628.96,0.29168169]
[1746784329987,0.25684159,631.28,628.96,0.29168169]
[1746784334390,0.27614007,631.27,628.96,0.29168169]
[1746784334591,0.25684159,631.26,628.96,0.29168169]
[1746784338605,0.27614007,631.27,628.95,0.59413037]
[1746784338896,0.25721385,631.26,628.96,0.29169903]
[1746784340303,0.27614993,631.25,628.96,0.29169903]
[1746784340702,0.25721385,631.24,628.96,0.29169903]
[1746784343204,0.25721385,631.23,628.97,0.29169903]
[1746784343404,0.27614993,631.23,628.95,0.59414023]
[1746784343903,0.25731704,631.22,628.96,0.29170052]
[1746784344200,0.25731704,631.21,628.97,0.29170052]
[1746784344805,0.25731704,631.22,628.96,0.29170052]
[1746784345806,0.25731704,631.21,628.96,0.29170052]
[1746784346306,0.25731704,631.2,628.96,0.29170052]
[1746784346606,0.25731704,631.19,628.96,0.29170052]
[1746784346907,0.25731704,631.18,628.97,0.29170052]
[1746784347207,0.25731704,631.17,628.96,0.29170052]
[1746784347808,0.25731704,631.16,628.96,0.29170052]
[1746784348209,0.25731704,631.15,628.96,0.29170052]
[1746784348713,0.25731704,631.14,628.96,0.29170052]
[1746784349010,0.25731704,631.13,628.96,0.29170052]
[1746784349410,0.53347574,631.13,628.96,0.29170052]
[1746784349710,0.25731704,631.12,628.96,0.29170052]
[1746784350109,0.25731704,631.11,628.96,0.29170052]
[1746784350510,0.25731704,631.1,628.96,0.29170052]
[1746784350910,0.2761587,631.13,628.96,0.29170052]
[1746784350911,0.25731704,631.09,628.96,0.29170052]
[1746784351211,0.25731704,631.12,628.96,0.29170052]
[1746784352511,0.25731704,631.3,628.96,0.29170052]
[1746784353313,0.27612802,631.29,628.96,0.29170052]
[1746784353510,0.25731704,631.28,628.96,0.29170052]
[1746784354414,0.25731704,631.28,628.97,0.29170052]
[1746784355110,0.25731704,631.28,628.98,0.29170052]
[1746784355614,0.25731704,631.28,628.99,0.29170052]
[1746784355911,0.25731704,631.28,629.0,0.29170052]
[1746784356314,0.25731704,631.28,629.01,0.29170052]
[1746784356615,0.25731704,631.28,629.02,0.29170052]
[1746784356910,0.27612802,631.29,629.11,1.00675414]
[1746784357216,0.2572711,631.28,629.12,0.29157631]
[1746784357713,0.2572711,631.28,629.13,0.29157631]
[1746784358118,0.2572711,631.28,629.14,0.29157631]
[1746784358417,0.2572711,631.28,629.15,0.29157631]
[1746784358718,0.2572711,631.28,629.16,0.29157631]
[1746784359117,0.2572711,631.28,629.17,0.29157631]
[1746784359317,0.2572711,631.28,629.18,0.29157631]
[1746784359621,0.2572711,631.28,629.19,0.29157631]
[1746784360018,0.2572711,631.28,629.2,0.29157631]
[1746784360418,0.2572711,631.28,629.21,0.29157631]
[1746784360920,0.2572711,631.28,629.22,0.29157631]
[1746784361222,0.2572711,631.28,629.23,0.29157631]
[1746784361616,0.2572711,631.3,629.24,0.29157631]
[1746784361818,0.2572711,631.3,629.25,0.29157631]
[1746784362119,0.2572711,631.3,629.26,0.29157631]
[1746784362322,0.27605902,631.29,629.26,0.29157631]
[1746784362622,0.27605902,631.29,629.27,0.29157631]
[1746784363023,0.2572711,631.28,629.28,0.29157631]
[1746784363322,0.2572711,631.28,629.29,0.29157631]
[1746784363821,0.2572711,631.28,629.3,0.29157631]
[1746784364022,0.2572711,631.28,629.31,0.29157631]
[1746784364323,0.27606997,631.27,629.16,0.27606997]
[1746784364623,0.25714044,631.26,629.17,0.29157075]
[1746784364923,0.25714044,631.26,629.18,0.29157075]
[1746784365417,0.25714044,631.26,629.19,0.29157075]
[1746784365918,0.25714044,631.26,629.17,0.29157075]
[1746784367525,0.25714044,631.26,629.11,0.29157075]
[1746784367825,0.25714044,631.3,628.96,0.29157075]
[1746784368124,0.25714044,631.3,628.97,0.29157075]
[1746784368323,0.27608859,631.29,628.97,0.56765934]
[1746784368524,0.27608859,631.29,628.98,0.29157075]
[1746784368723,0.27608859,631.29,628.99,0.29157075]
[1746784368924,0.25714044,631.28,628.99,0.29157075]
[1746784369322,0.25714044,631.28,629.0,0.29157075]
[1746784369522,0.25714044,631.28,629.01,0.29157075]
[1746784369826,0.25714044,631.28,628.98,0.29157075]
[1746784370327,0.25714044,631.28,628.99,0.29157075]
[1746784370627,0.27608859,631.27,628.97,0.2760864]
[1746784370926,0.25714044,631.26,628.98,0.29157075]
[1746784372028,0.25714044,631.26,628.97,0.2760864]
[1746784372029,0.25714044,631.26,628.99,0.29157075]
[1746784372221,0.25714044,631.26,628.97,0.2760864]
[1746784372222,0.25714044,631.26,628.98,0.29157075]
[1746784373028,0.25714044,631.26,628.99,0.29157075]
[1746784373329,0.25714044,631.3,629.0,0.29157075]
[1746784373629,0.25714044,631.3,629.01,0.29157075]
[1746784374130,0.25714044,631.3,629.02,0.29157075]
[1746784374329,0.27607325,631.29,629.03,0.29157075]
[1746784374728,0.25714044,631.28,629.04,0.29157075]
[1746784375029,0.25714044,631.28,629.05,0.29157075]
[1746784375528,0.25714044,631.28,629.06,0.29157075]
[1746784375824,0.25714044,631.28,629.07,0.29157075]
[1746784376130,0.25714044,631.28,629.08,0.29157075]
[1746784376432,0.25714044,631.3,629.09,0.29157075]
[1746784376727,0.25714044,631.3,629.1,0.29157075]
[1746784377034,0.25714044,631.3,629.11,0.29157075]
[1746784377225,0.25714044,631.3,629.12,0.29157075]
[1746784377430,0.27606011,631.29,629.12,0.29157075]
[1746784377632,0.27606011,631.29,629.13,0.29157075]
[1746784377933,0.25714044,631.28,629.14,0.29157075]
[1746784378330,0.25714044,631.28,629.15,0.29157075]
[1746784378637,0.27606011,631.29,629.03,0.27606011]
[1746784378934,0.25850324,631.28,629.04,0.29151534]
[1746784379431,0.27604041,631.27,629.05,0.29151534]
[1746784379634,0.25850324,631.26,629.06,0.29151534]
[1746784379836,0.25850324,631.26,629.07,0.29151534]
[1746784380436,0.25850324,631.26,629.08,0.29151534]
[1746784380630,0.25850324,631.26,629.09,0.29151534]
[1746784381032,0.27604041,631.27,629.03,0.27604041]
[1746784381337,0.25871072,631.26,629.04,0.29151285]
[1746784381636,0.25871072,631.26,629.05,0.29151285]
[1746784381836,0.25871072,631.26,629.06,0.29151285]
[1746784382237,0.25871072,631.26,629.07,0.29151285]
[1746784382638,0.25871072,631.3,629.08,0.29151285]
[1746784382934,0.25871072,631.3,629.09,0.29151285]
[1746784383341,0.27604479,631.29,629.1,0.29151285]
[1746784383634,0.25871072,631.28,629.11,0.29151285]
[1746784384044,0.25871072,631.28,629.12,0.29151285]
[1746784384340,0.25871072,631.28,629.13,0.29151285]
[1746784384939,0.25871072,631.28,629.14,0.29151285]
[1746784385339,0.25871072,631.28,629.15,0.29151285]
[1746784385639,0.25871072,631.28,629.16,0.29151285]
[1746784385941,0.25871072,631.28,629.17,0.29151285]
[1746784386440,0.25871072,631.28,629.18,0.29151285]
[1746784386840,0.25871072,631.28,629.19,0.29151285]
[1746784387141,0.25871072,631.28,629.2,0.29151285]
[1746784387542,0.25871072,631.28,629.21,0.29151285]
[1746784387937,0.25871072,631.28,629.22,0.29151285]
[1746784388141,0.25871072,631.28,629.23,0.29151285]
[1746784388538,0.25871072,631.3,629.24,0.29151285]
[1746784388842,0.25871072,631.3,629.25,0.29151285]
[1746784389042,0.25871072,631.3,629.26,0.29151285]
[1746784389342,0.31680157,631.31,629.12,0.27600866]
[1746784389743,0.25825995,631.3,629.13,0.29144177]
[1746784390144,0.25825995,631.3,629.14,0.29144177]
[1746784390337,0.25825995,631.3,629.15,0.29144177]
[1746784390843,0.25825995,631.3,629.16,0.29144177]
[1746784391144,0.25825995,631.3,629.17,0.29144177]
[1746784391544,0.25825995,631.3,629.18,0.29144177]
[1746784391739,0.25825995,631.3,629.17,1.00675414]
[1746784391740,0.25825995,631.3,629.19,0.29144177]
[1746784392045,0.25825995,631.3,629.2,0.29144177]
[1746784392244,0.25825995,631.3,629.21,0.29144177]
[1746784392539,0.25825995,631.3,629.22,0.29144177]
[1746784393145,0.25825995,631.3,629.23,0.29144177]
[1746784393445,0.25825995,631.3,629.24,0.29144177]
[1746784393944,0.25825995,631.3,629.17,1.00675414]
[1746784393945,0.25825995,631.3,629.25,0.29144177]
[1746784394346,0.25825995,631.3,629.18,0.5674362]
[1746784394544,0.25825995,631.3,629.26,0.29144177]
[1746784394842,0.25825995,631.3,629.19,0.29144177]
[1746784395446,0.27602399,631.29,629.18,0.27599443]
[1746784395843,0.25860712,631.28,629.19,0.29150554]
[1746784397549,0.25860712,632.46,628.92,0.29150554]
[1746784397851,2.01121044,632.39,628.93,0.29150554]
[1746784398144,0.25860712,632.38,628.94,0.29150554]
[1746784398349,0.53456872,632.38,628.94,0.56746714]
[1746784398549,0.25860712,632.37,628.95,0.29150554]
[1746784398849,0.25860712,632.36,628.96,0.29150554]
[1746784399148,0.25860712,632.35,628.97,0.29150554]
[1746784399451,0.25860712,632.34,628.98,0.29150554]
[1746784399847,0.25860712,632.34,628.99,0.29150554]
[1746784400051,0.25860712,632.33,628.99,0.29150554]
[1746784400352,0.25860712,632.32,629.0,0.29150554]
[1746784400550,0.25860712,632.31,629.01,0.29150554]
[1746784400853,0.25860712,632.3,629.02,0.29150554]
[1746784401151,0.25860712,632.29,629.03,0.29150554]
[1746784401449,0.25860712,632.28,629.04,0.29150554]
[1746784401751,0.25860712,632.27,629.05,0.29150554]
[1746784402052,0.25860712,632.26,629.06,0.29150554]
[1746784402451,0.25860712,632.25,629.07,0.29150554]
[1746784402753,0.25860712,632.24,629.08,0.29150554]
[1746784403054,0.25860712,632.24,629.23,0.31784879]
[1746784403352,0.31641063,632.09,629.23,0.31784879]
[1746784403554,2.01121044,631.94,629.23,0.31784879]
[1746784403849,0.25860712,631.93,629.24,0.29150554]
[1746784404155,0.25860712,631.92,629.24,0.29150554]
[1746784404553,0.25860712,631.91,629.24,0.29150554]
[1746784404954,0.25860712,631.9,629.24,0.29150554]
[1746784405452,0.25860712,631.89,629.24,0.29150554]
[1746784405754,0.25860712,631.88,629.24,0.29150554]
[1746784406056,0.25860712,631.87,629.24,0.29150554]
[1746784406450,0.25860712,631.86,629.24,0.29150554]
[1746784407050,0.25860712,631.85,629.24,0.29150554]
[1746784407355,0.25860712,631.84,629.24,0.29150554]
[1746784407655,0.27603274,631.87,629.23,0.31784879]
[1746784407954,0.25856523,631.86,629.24,0.29171224]
[1746784408250,0.25856523,631.85,629.24,0.29171224]
[1746784408556,0.25856523,631.84,629.24,0.29171224]
[1746784408857,2.01121044,631.75,629.24,0.29171224]
[1746784409251,0.25856523,631.74,629.24,0.29171224]
[1746784409557,0.25856523,631.73,629.24,0.29171224]
[1746784409855,0.25856523,631.72,629.24,0.29171224]
[1746784410256,0.25856523,631.71,629.24,0.29171224]
[1746784410451,0.53463191,631.71,629.24,0.29171224]
[1746784410651,0.25856523,631.7,629.24,0.29171224]
[1746784410955,0.25856523,631.69,629.24,0.29171224]
[1746784411256,0.25856523,631.68,629.24,0.29171224]
[1746784411751,0.25856523,631.67,629.24,0.29171224]
[1746784412157,0.25856523,631.66,629.24,0.29171224]
[1746784412655,0.25856523,631.65,629.24,0.29171224]
[1746784412955,0.25856523,631.64,629.24,0.29171224]
[1746784413252,0.25856523,631.63,629.24,0.29171224]
[1746784413557,0.27606668,631.71,629.24,0.29171224]
[1746784413558,0.25856523,631.62,629.24,0.29171224]
[1746784413853,0.25856523,631.7,629.24,0.29171224]
[1746784414258,0.25856523,631.69,629.24,0.29171224]
[1746784414451,0.25856523,631.68,629.24,0.29171224]
[1746784414860,0.25856523,631.67,629.24,0.29171224]
[1746784415258,0.25856523,631.66,629.24,0.29171224]
[1746784415563,0.25856523,631.65,629.24,0.29171224]
[1746784415861,0.25856523,631.64,629.24,0.29171224]
[1746784416161,0.25856523,631.63,629.24,0.29171224]
[1746784416460,0.25856523,631.62,629.24,0.29171224]
[1746784416760,0.25856523,631.61,629.24,0.29171224]
[1746784417160,0.25856523,631.6,629.24,0.29171224]
[1746784417457,0.25856523,631.59,629.25,0.29171224]
[1746784417859,0.25856523,631.58,629.26,0.29171224]
[1746784418262,0.25856523,631.7,629.24,0.29171224]
[1746784418561,0.25856523,631.69,629.24,0.29171224]
[1746784418962,0.25856523,631.68,629.24,0.29171224]
[1746784419362,0.25856523,631.67,629.24,0.29171224]
[1746784419764,0.25856523,631.7,629.24,0.29171224]
[1746784421465,0.25856523,632.08,629.24,0.29171224]
[1746784421764,0.25856523,632.07,629.24,0.29171224]
[1746784422063,0.25856523,632.08,629.23,0.31784879]
[1746784422365,0.27600428,632.06,629.23,0.31784879]
[1746784422761,0.25856523,632.05,629.23,0.31784879]
[1746784423469,0.25856523,632.04,629.24,0.29162627]
[1746784423870,0.25856523,632.03,629.24,0.29162627]
[1746784424269,0.25856523,632.08,629.24,0.29162627]
[1746784424467,0.27598349,632.02,629.24,0.29162627]
[1746784425370,0.25856523,632.01,629.24,0.29162627]
[1746784425671,0.25856523,632.0,629.24,0.29162627]
[1746784425964,0.27598349,632.02,629.24,0.29162627]
[1746784425965,0.25856523,631.99,629.24,0.29162627]
[1746784426264,0.25856523,631.98,629.24,0.29162627]
[1746784426570,0.27598349,632.02,629.23,0.31784879]
[1746784427070,0.25939327,632.01,629.24,0.29160753]
[1746784427569,0.25939327,632.0,629.24,0.29160753]
[1746784427970,0.25939327,631.99,629.26,0.31783364]
[1746784428369,0.5354085,631.98,629.26,0.31783364]
[1746784428665,0.25939327,631.97,629.26,0.31783364]
[1746784429171,0.25939327,631.96,629.26,0.31783364]
[1746784429472,0.25939327,631.95,629.26,0.31783364]
[1746784429871,0.25939327,631.94,629.26,0.31783364]
[1746784430266,0.25939327,631.93,629.26,0.31783364]
[1746784430467,0.53541397,631.93,629.26,0.31783364]
[1746784430672,0.25939327,631.92,629.26,0.31783364]
[1746784431074,0.25939327,631.91,629.27,0.29166321]
[1746784431470,0.2760207,631.93,629.27,0.29166321]
[1746784431471,0.25939327,631.9,629.27,0.29166321]
[1746784431772,0.25939327,631.9,629.29,0.31781849]
[1746784431973,0.25939327,631.89,629.29,0.31781849]
[1746784432271,0.25939327,631.88,629.3,0.29166321]
[1746784432674,0.25939327,631.87,629.3,0.29166321]
[1746784433074,0.25939327,631.86,629.3,0.29166321]
[1746784433374,0.25939327,631.85,629.3,0.29166321]
[1746784433675,0.25939327,631.84,629.3,0.29166321]
[1746784433976,0.25939327,631.83,629.3,0.29166321]
[1746784434278,0.25939327,631.82,629.3,0.29166321]
[1746784434578,0.25939327,631.81,629.32,0.31780334]
[1746784434872,0.25939327,631.8,629.33,0.29166321]
[1746784435074,0.25939327,631.8,629.35,0.31778819]
[1746784435271,0.25939327,631.79,629.35,0.31778819]
[1746784435471,0.25939327,631.78,629.36,0.29166321]
[1746784435676,0.25939327,631.77,629.36,0.29166321]
[1746784435976,0.25939327,631.76,629.36,0.29166321]
[1746784436176,0.25939327,631.75,629.36,0.29166321]
[1746784436472,0.25939327,631.74,629.36,0.29166321]
[1746784436673,0.25939327,631.73,629.36,0.29166321]
[1746784438375,0.25939327,631.72,629.36,0.29166321]
[1746784438776,0.25939327,631.71,629.36,0.29166321]
[1746784439077,0.25939327,631.7,629.36,0.29166321]
[1746784439373,0.53542711,631.7,629.36,0.29166321]
[1746784439575,0.25939327,631.69,629.36,0.29166321]
[1746784439977,0.25939327,631.69,629.38,0.31777304]
[1746784440177,0.31666613,631.58,629.38,0.31777304]
[1746784440581,0.25939327,631.57,629.39,0.29166321]
[1746784440778,0.25939327,631.56,629.39,0.29166321]
[1746784441478,0.25939327,631.55,629.39,0.29166321]
[1746784441883,0.25939327,631.54,629.39,0.29166321]
[1746784442282,0.25939327,631.53,629.38,0.31777304]
[1746784442784,0.25939327,631.54,629.38,0.31777304]
[1746784444083,0.25939327,631.57,629.38,0.31777304]
[1746784444380,0.25939327,631.56,629.38,0.31777304]
[1746784444985,0.31666613,631.58,629.38,0.31777304]
[1746784444986,0.25939327,631.55,629.38,0.31777304]
[1746784445379,0.27605354,631.54,629.38,0.31777304]
[1746784445784,0.25939327,631.53,629.38,0.31777304]
[1746784446380,0.27605354,631.54,629.38,0.31777304]
[1746784446783,0.25928187,631.53,629.38,0.31777304]
[1746784448390,0.27606011,631.52,629.38,0.31777304]
[1746784448784,0.25928187,631.51,629.38,0.31777304]
[1746784450189,0.25928187,631.5,629.38,0.31777304]
[1746784450689,0.25928187,631.49,629.38,0.31777304]
[1746784451290,0.25928187,631.48,629.38,0.31777304]
[1746784451589,0.25928187,631.47,629.38,0.31777304]
[1746784451892,0.25928187,631.46,629.38,0.31777304]
[1746784452288,0.25928187,631.45,629.38,0.31777304]
[1746784452690,0.25928187,631.44,629.38,0.31777304]
[1746784452989,0.25928187,631.51,629.38,0.31777304]
[1746784453695,0.25928187,631.5,629.38,0.31777304]
[1746784453994,0.25928187,631.49,629.38,0.31777304]
[1746784454495,0.25928187,631.48,629.38,0.31777304]
[1746784454692,0.27606011,631.52,629.38,0.31777304]
[1746784455093,2.01121044,631.41,629.38,0.31777304]
[1746784455498,0.25908035,631.4,629.38,0.31777304]
[1746784455798,0.25908035,631.39,629.38,0.31777304]
[1746784456098,0.25908035,631.38,629.38,0.31777304]
[1746784456699,0.25908035,631.37,629.38,0.31777304]
[1746784456999,2.01121044,631.41,629.38,0.31777304]
[1746784457194,0.25925965,631.4,629.38,0.31777304]
[1746784457499,0.25925965,631.39,629.38,0.31777304]
[1746784457697,1.45207557,631.39,629.38,0.31777304]
[1746784457898,1.19281592,631.39,629.38,0.31777304]
[1746784458195,0.25922159,631.38,629.38,0.31777304]
[1746784458398,0.53549977,631.38,629.38,0.31777304]
[1746784458606,0.25922159,631.37,629.38,0.31777304]
[1746784458795,0.25922159,631.36,629.38,0.31777304]
[1746784459198,0.25922159,631.35,629.38,0.31777304]
[1746784459500,0.25922159,631.34,629.38,0.31777304]
[1746784459895,0.25922159,631.33,629.38,0.31777304]
[1746784460397,1.19281592,631.27,629.38,0.31777304]
[1746784460596,0.25922159,631.26,629.38,0.31777304]
[1746784460900,0.25922159,631.25,629.38,0.31777304]
[1746784461201,0.53551622,631.25,629.38,0.31777304]
[1746784461401,0.25922159,631.24,629.38,0.31777304]
[1746784461700,0.25922159,631.23,629.38,0.31777304]
[1746784461898,0.25922159,631.22,629.38,0.31777304]
[1746784462201,0.25922159,631.21,629.38,0.31777304]
[1746784462602,0.25922159,631.2,629.38,0.31777304]
[1746784462897,0.25922159,631.19,629.38,0.31777304]
[1746784463398,0.25922159,631.37,629.38,0.31777304]
[1746784463698,0.25922159,631.36,629.38,0.31777304]
[1746784464101,0.25922159,631.37,629.38,0.31777304]
[1746784464402,0.27625077,631.35,629.38,0.31777304]
[1746784465104,0.25922159,631.34,629.38,0.31777304]
[1746784466407,0.27612802,631.33,629.38,0.31777304]
[1746784466810,0.25922159,631.32,629.38,0.31777304]
[1746784469411,0.27607325,631.31,629.38,0.31777304]
[1746784469812,0.25970989,631.3,629.38,0.31777304]
[1746784472313,0.25970989,631.3,629.39,0.29162156]
[1746784475610,0.25970989,631.57,629.39,0.29162156]
[1746784476416,0.2760207,631.56,629.39,0.29162156]
[1746784476915,0.25970989,631.55,629.39,0.29162156]
[1746784478514,0.2760207,631.54,629.39,0.29162156]
[1746784478920,0.25970989,631.53,629.39,0.29162156]
[1746784479219,0.2760207,631.54,629.38,0.59379374]
[1746784479519,0.25958127,631.53,629.39,0.29161133]
[1746784481517,0.27604041,631.52,629.39,0.29161133]
[1746784482024,0.25958127,631.51,629.38,0.59381345]
[1746784484128,0.25958127,631.51,629.38,0.31777304]
[1746784484323,0.27605573,631.5,629.38,0.31777304]
[1746784484519,0.27605573,631.5,629.38,0.59382877]
[1746784484826,0.25958127,631.49,629.38,0.59382877]
[1746784485627,0.25958127,631.49,629.39,0.29165683]
[1746784486822,0.25958127,631.49,629.38,0.59382877]
[1746784487127,0.25958127,631.49,629.38,0.31777304]
[1746784487331,0.25958127,631.48,629.38,0.31777304]
[1746784487529,0.5356611,631.48,629.38,0.59385287]
[1746784487730,0.25958127,631.47,629.38,0.59385287]
[1746784487927,0.25958127,631.46,629.38,0.59385287]
[1746784488427,0.25958127,631.45,629.38,0.59385287]
[1746784488730,0.25958127,631.44,629.38,0.59385287]
[1746784489231,0.25958127,631.43,629.38,0.59385287]
[1746784489634,0.25958127,631.42,629.38,0.59385287]
[1746784489932,0.25958127,631.41,629.38,0.59385287]
[1746784490133,0.25958127,631.41,629.38,0.31777304]
[1746784490332,0.25958127,631.4,629.38,0.31777304]
[1746784490532,0.53566986,631.4,629.38,0.59386163]
[1746784490731,0.25958127,631.39,629.38,0.59386163]
[1746784491032,0.25958127,631.38,629.38,0.59386163]
[1746784491328,0.25958127,631.37,629.38,0.59386163]
[1746784491733,0.27608859,631.4,629.38,0.59386163]
[1746784492034,0.25964139,631.39,629.38,0.59386163]
[1746784492332,0.25964139,631.38,629.38,0.59386163]
[1746784493234,0.25964139,631.37,629.38,0.31777304]
[1746784493434,0.53572998,631.37,629.38,0.59386163]
[1746784493635,0.25964139,631.36,629.38,0.59386163]
[1746784493929,0.25964139,631.35,629.38,0.59386163]
[1746784494431,0.25964139,631.34,629.38,0.59386163]
[1746784494631,0.31679655,631.32,629.38,0.59386163]
[1746784495233,0.25966006,631.31,629.38,0.59386163]
[1746784495535,0.25966006,631.3,629.38,0.59386163]
[1746784496234,0.25966006,631.29,629.38,0.59386163]
[1746784496730,0.25966006,631.28,629.38,0.59386163]
[1746784497034,0.25966006,631.27,629.38,0.59386163]
[1746784497335,0.25966006,631.26,629.38,0.59386163]
[1746784497734,0.25966006,631.25,629.38,0.59386163]
[1746784498037,0.25966006,631.24,629.38,0.59386163]
[1746784498335,0.25966006,631.23,629.38,0.59386163]
[1746784498735,0.31679655,631.32,629.38,0.59386163]
[1746784498736,0.25966006,631.22,629.38,0.59386163]
[1746784499036,0.25966006,631.21,629.38,0.59386163]
[1746784499237,0.25966006,631.21,629.38,0.31777304]
[1746784499535,0.53577274,631.2,629.38,0.59388572]
[1746784499831,0.25966006,631.19,629.38,0.59388572]
[1746784500133,0.27611268,631.2,629.38,0.59388572]
[1746784500134,0.25966006,631.18,629.38,0.59388572]
[1746784500535,0.27611268,631.2,629.38,0.59388572]
[1746784500536,0.25966006,631.17,629.38,0.59388572]
[1746784500837,0.25966006,631.16,629.38,0.59388572]